[Event "Early-Titled-Tuesday-Blitz-February-06-2024"]
[Site "Chess.com"]
[Date "2024.02.06"]
[Round "9"]
[White "tptagain"]
[Black "Szparu"]
[Result "1-0"]
[WhiteElo "2951"]
[BlackElo "2828"]
[TimeControl "180+1"]
[EndTime "9:45:03 PST"]
[Termination "tptagain won by resignation"]

1. Nf3 {[%clk 0:03:00.9]} 1... d5 {[%clk 0:02:58.5]} 2. c4 {[%clk 0:03:00.7]}
2... c6 {[%clk 0:02:56.5]} 3. e3 {[%clk 0:03:00.8]} 3... Nf6 {[%clk 0:02:55.6]}
4. Nc3 {[%clk 0:03:01.3]} 4... e6 {[%clk 0:02:55.2]} 5. b3 {[%clk 0:03:01.5]}
5... Bd6 {[%clk 0:02:54.1]} 6. Bb2 {[%clk 0:03:00.2]} 6... O-O {[%clk
0:02:54.1]} 7. d4 {[%clk 0:02:54.7]} 7... Nbd7 {[%clk 0:02:53.1]} 8. Bd3 {[%clk
0:02:54.2]} 8... b6 {[%clk 0:02:52.3]} 9. O-O {[%clk 0:02:53.5]} 9... Bb7 {[%clk
0:02:52.1]} 10. Qc2 {[%clk 0:02:52.4]} 10... h6 {[%clk 0:02:30.4]} 11. Rfd1
{[%clk 0:02:38.8]} 11... Qe7 {[%clk 0:02:28.4]} 12. e4 {[%clk 0:02:07.7]} 12...
dxe4 {[%clk 0:02:28.6]} 13. Bxe4 {[%clk 0:02:08.3]} 13... Rac8 {[%clk
0:02:19.7]} 14. Bd3 {[%clk 0:01:59.6]} 14... c5 {[%clk 0:02:18.2]} 15. d5 {[%clk
0:02:00]} 15... e5 {[%clk 0:02:13.5]} 16. Nh4 {[%clk 0:01:44.6]} 16... Rfe8
{[%clk 0:01:31.7]} 17. Nf5 {[%clk 0:01:35]} 17... Qf8 {[%clk 0:01:32.3]} 18.
Nxd6 {[%clk 0:01:13.2]} 18... Qxd6 {[%clk 0:01:32.2]} 19. Bf5 {[%clk 0:01:12.6]}
19... a6 {[%clk 0:01:29.2]} 20. Re1 {[%clk 0:01:04.5]} 20... Rcd8 {[%clk
0:01:25.6]} 21. Re3 {[%clk 0:01:01.7]} 21... Nf8 {[%clk 0:01:24.6]} 22. Rae1
{[%clk 0:01:00.3]} 22... Bc8 {[%clk 0:01:25]} 23. Na4 {[%clk 0:00:57.2]} 23...
Bxf5 {[%clk 0:00:49.2]} 24. Qxf5 {[%clk 0:00:58.1]} 24... b5 {[%clk 0:00:49.4]}
25. Nc3 {[%clk 0:00:53.5]} 25... Ng6 {[%clk 0:00:48]} 26. g3 {[%clk 0:00:44.2]}
26... bxc4 {[%clk 0:00:44.2]} 27. bxc4 {[%clk 0:00:44.3]} 27... Qb6 {[%clk
0:00:38.1]} 28. Qc2 {[%clk 0:00:39.8]} 28... Qb4 {[%clk 0:00:32.4]} 29. a3
{[%clk 0:00:25.4]} 29... Qxc4 {[%clk 0:00:29.5]} 30. Re4 {[%clk 0:00:25.9]}
30... Nxe4 {[%clk 0:00:24.4]} 31. Rxe4 {[%clk 0:00:26.8]} 31... Qd4 {[%clk
0:00:20.7]} 32. Rxd4 {[%clk 0:00:27.2]} 32... exd4 {[%clk 0:00:19.8]} 33. Na4
{[%clk 0:00:27.4]} 33... Rxd5 {[%clk 0:00:16.8]} 34. Qc4 {[%clk 0:00:27]} 34...
Red8 {[%clk 0:00:14.3]} 35. Bc1 {[%clk 0:00:22.4]} 35... Ne5 {[%clk 0:00:12.4]}
36. Qxa6 {[%clk 0:00:17.8]} 36... d3 {[%clk 0:00:10.9]} 37. Kg2 {[%clk
0:00:16.4]} 37... d2 {[%clk 0:00:10.1]} 38. Bxd2 {[%clk 0:00:16.8]} 38... Rxd2
{[%clk 0:00:11]} 39. Nxc5 {[%clk 0:00:17]} 39... Nd3 {[%clk 0:00:08.3]} 40. Ne4
{[%clk 0:00:13.9]} 40... Re2 {[%clk 0:00:06.1]} 41. Qc4 {[%clk 0:00:12.8]} 41...
Ne1+ {[%clk 0:00:03.9]} 42. Kf1 {[%clk 0:00:10]} 42... Rxe4 {[%clk 0:00:03.1]}
43. Qxe4 {[%clk 0:00:10]} 43... Nd3 {[%clk 0:00:03.1]} 44. a4 {[%clk 0:00:09.5]}
44... Nc5 {[%clk 0:00:03.2]} 45. Qc6 {[%clk 0:00:09.9]} 45... Nb3 {[%clk
0:00:02.8]} 46. Qb6 {[%clk 0:00:09.5]} 46... Rd3 {[%clk 0:00:02.5]} 47. a5
{[%clk 0:00:09.1]} 47... Rd2 {[%clk 0:00:02.9]} 48. Qxb3 {[%clk 0:00:08.4]} 1-0

[Event "Early-Titled-Tuesday-Blitz-February-06-2024"]
[Site "Chess.com"]
[Date "2024.02.06"]
[Round "9"]
[White "snowlord"]
[Black "Denis_Makhnyov"]
[Result "0-1"]
[WhiteElo "2857"]
[BlackElo "3019"]
[TimeControl "180+1"]
[EndTime "9:45:04 PST"]
[Termination "Denis_Makhnyov won on time"]

1. Nf3 {[%clk 0:02:58.2]} 1... d5 {[%clk 0:02:58.3]} 2. g3 {[%clk 0:02:57.1]}
2... c5 {[%clk 0:02:50.3]} 3. Bg2 {[%clk 0:02:56.9]} 3... Nc6 {[%clk 0:02:51]}
4. d4 {[%clk 0:02:56.5]} 4... Nf6 {[%clk 0:02:42.6]} 5. O-O {[%clk 0:02:55.5]}
5... cxd4 {[%clk 0:02:39.7]} 6. Nxd4 {[%clk 0:02:55.2]} 6... e5 {[%clk 0:02:40]}
7. Nxc6 {[%clk 0:02:55.6]} 7... bxc6 {[%clk 0:02:40.8]} 8. c4 {[%clk 0:02:56.5]}
8... Be6 {[%clk 0:02:41.1]} 9. Bg5 {[%clk 0:02:56.8]} 9... Rc8 {[%clk
0:02:36.7]} 10. Qa4 {[%clk 0:02:46]} 10... Qd7 {[%clk 0:02:35.1]} 11. Nc3 {[%clk
0:02:40.8]} 11... d4 {[%clk 0:02:33.4]} 12. Rad1 {[%clk 0:02:40.3]} 12... Be7
{[%clk 0:02:00.5]} 13. e3 {[%clk 0:02:28.2]} 13... c5 {[%clk 0:01:58.3]} 14. Nb5
{[%clk 0:02:20]} 14... O-O {[%clk 0:01:22.3]} 15. b3 {[%clk 0:02:01.3]} 15...
Ng4 {[%clk 0:01:06]} 16. Bxe7 {[%clk 0:02:00.8]} 16... Qxe7 {[%clk 0:01:05.9]}
17. exd4 {[%clk 0:01:48.2]} 17... cxd4 {[%clk 0:01:04.8]} 18. h3 {[%clk
0:01:39.3]} 18... Nh6 {[%clk 0:00:58.4]} 19. Qxa7 {[%clk 0:01:39.2]} 19... Qf6
{[%clk 0:00:55.7]} 20. Nd6 {[%clk 0:01:33.4]} 20... Rcd8 {[%clk 0:00:51.5]} 21.
Qc5 {[%clk 0:01:04.8]} 21... Bxh3 {[%clk 0:00:42.4]} 22. Bxh3 {[%clk 0:01:05.7]}
22... Rxd6 {[%clk 0:00:42.4]} 23. Rfe1 {[%clk 0:01:05.3]} 23... Re8 {[%clk
0:00:41.4]} 24. Qb5 {[%clk 0:00:48.1]} 24... Qe7 {[%clk 0:00:32.6]} 25. c5
{[%clk 0:00:40.2]} 25... Rd5 {[%clk 0:00:32.9]} 26. b4 {[%clk 0:00:37.8]} 26...
e4 {[%clk 0:00:33.3]} 27. Rxe4 {[%clk 0:00:26.5]} 27... Qxe4 {[%clk 0:00:34.2]}
28. Bg2 {[%clk 0:00:26.4]} 28... Rxc5 {[%clk 0:00:30.7]} 29. bxc5 {[%clk
0:00:20.4]} 29... Qe5 {[%clk 0:00:30.7]} 30. Rxd4 {[%clk 0:00:19.7]} 30... Qe1+
{[%clk 0:00:23.6]} 31. Bf1 {[%clk 0:00:19.2]} 31... Nf5 {[%clk 0:00:21.9]} 32.
Rd1 {[%clk 0:00:18.8]} 32... Qe5 {[%clk 0:00:21]} 33. Qd7 {[%clk 0:00:08.9]}
33... g6 {[%clk 0:00:20.1]} 34. c6 {[%clk 0:00:09.2]} 34... Re7 {[%clk
0:00:19.1]} 35. Qd8+ {[%clk 0:00:08.2]} 35... Kg7 {[%clk 0:00:19.1]} 36. a4
{[%clk 0:00:07.5]} 36... h5 {[%clk 0:00:16.5]} 37. Qd5 {[%clk 0:00:07.5]} 37...
Qf6 {[%clk 0:00:16]} 38. a5 {[%clk 0:00:07.9]} 38... h4 {[%clk 0:00:16.2]} 39.
g4 {[%clk 0:00:06.4]} 39... Re5 {[%clk 0:00:15.1]} 40. Qc4 {[%clk 0:00:04.8]}
40... Ne7 {[%clk 0:00:07.9]} 41. c7 {[%clk 0:00:04.5]} 41... Rxa5 {[%clk
0:00:07.4]} 42. c8=Q {[%clk 0:00:03.4]} 42... Nxc8 {[%clk 0:00:08.1]} 43. Qxc8
{[%clk 0:00:04.3]} 43... Ra2 {[%clk 0:00:08.9]} 44. Qc5 {[%clk 0:00:03.3]} 44...
Ra4 {[%clk 0:00:09]} 45. f3 {[%clk 0:00:02.2]} 45... Qxf3 {[%clk 0:00:08.2]} 0-1

[Event "Early-Titled-Tuesday-Blitz-February-06-2024"]
[Site "Chess.com"]
[Date "2024.02.06"]
[Round "9"]
[White "viktorskliarov"]
[Black "Manukyan_Artak"]
[Result "1-0"]
[WhiteElo "2625"]
[BlackElo "2477"]
[TimeControl "180+1"]
[EndTime "9:45:04 PST"]
[Termination "viktorskliarov won by resignation"]

1. e4 {[%clk 0:03:00.9]} 1... c6 {[%clk 0:02:59.2]} 2. d4 {[%clk 0:03:00.6]}
2... d5 {[%clk 0:02:58]} 3. e5 {[%clk 0:03:01.1]} 3... Bf5 {[%clk 0:02:57.7]} 4.
Nf3 {[%clk 0:03:01.6]} 4... e6 {[%clk 0:02:56.8]} 5. Be2 {[%clk 0:03:02.3]} 5...
c5 {[%clk 0:02:56.7]} 6. Be3 {[%clk 0:03:01.9]} 6... Qb6 {[%clk 0:02:56.1]} 7.
Nc3 {[%clk 0:03:00.8]} 7... Qxb2 {[%clk 0:02:55]} 8. Qb1 {[%clk 0:02:50.5]} 8...
Qxb1+ {[%clk 0:02:51]} 9. Rxb1 {[%clk 0:02:48.5]} 9... Bxc2 {[%clk 0:02:51.1]}
10. Rxb7 {[%clk 0:02:45.5]} 10... c4 {[%clk 0:02:49.6]} 11. Kd2 {[%clk
0:02:18.3]} 11... Bg6 {[%clk 0:02:47.2]} 12. Bd1 {[%clk 0:02:15.4]} 12... Be7
{[%clk 0:02:20.1]} 13. Ba4+ {[%clk 0:01:41.7]} 13... Kf8 {[%clk 0:02:15.7]} 14.
Ne1 {[%clk 0:01:38.4]} 14... Nh6 {[%clk 0:02:06.7]} 15. Nc2 {[%clk 0:01:33.8]}
15... Ng4 {[%clk 0:02:01.8]} 16. Rhb1 {[%clk 0:01:28.9]} 16... Na6 {[%clk
0:01:56.3]} 17. Bb5 {[%clk 0:01:05.4]} 17... Bxc2 {[%clk 0:01:44.7]} 18. Kxc2
{[%clk 0:01:00.2]} 18... Nb4+ {[%clk 0:01:44.8]} 19. Kd2 {[%clk 0:00:57]} 19...
f5 {[%clk 0:01:37.2]} 20. Bd7 {[%clk 0:00:49.8]} 20... Nxe3 {[%clk 0:01:26]} 21.
fxe3 {[%clk 0:00:47.1]} 21... Kf7 {[%clk 0:01:25.7]} 22. R1xb4 {[%clk 0:00:25]}
22... Bxb4 {[%clk 0:01:26.6]} 23. Rxb4 {[%clk 0:00:16.6]} 23... Rhb8 {[%clk
0:01:26]} 24. a3 {[%clk 0:00:08.9]} 24... a5 {[%clk 0:01:25.1]} 25. Rxb8 {[%clk
0:00:07]} 25... Rxb8 {[%clk 0:01:26]} 26. Bb5 {[%clk 0:00:07]} 26... g5 {[%clk
0:01:25.3]} 27. g3 {[%clk 0:00:06.6]} 27... h5 {[%clk 0:01:25.3]} 28. a4 {[%clk
0:00:06.6]} 28... h4 {[%clk 0:01:25.3]} 29. Ke2 {[%clk 0:00:06.4]} 29... hxg3
{[%clk 0:01:25]} 30. hxg3 {[%clk 0:00:06.5]} 30... Rh8 {[%clk 0:01:25.5]} 31.
Bc6 {[%clk 0:00:03.2]} 31... Rh2+ {[%clk 0:01:25.3]} 32. Kf1 {[%clk 0:00:03.6]}
32... Rc2 {[%clk 0:01:23.4]} 33. Ne2 {[%clk 0:00:03.1]} 33... c3 {[%clk
0:01:21.2]} 34. Ke1 {[%clk 0:00:03.3]} 34... Kg6 {[%clk 0:01:16.8]} 35. Be8+
{[%clk 0:00:02.9]} 35... Kh6 {[%clk 0:01:16.7]} 36. Bf7 {[%clk 0:00:03.3]} 36...
Rb2 {[%clk 0:01:02]} 37. Nxc3 {[%clk 0:00:03.6]} 37... Rb6 {[%clk 0:00:56.1]}
38. Be8 {[%clk 0:00:03.2]} 38... Kg7 {[%clk 0:00:55.6]} 39. Bb5 {[%clk
0:00:03.3]} 39... Kf8 {[%clk 0:00:55]} 40. Nd1 {[%clk 0:00:03.4]} 40... Ke7
{[%clk 0:00:53.8]} 41. Nb2 {[%clk 0:00:03.9]} 41... Rb8 {[%clk 0:00:53.2]} 42.
Nd3 {[%clk 0:00:04.2]} 42... Rh8 {[%clk 0:00:53.1]} 43. Kf2 {[%clk 0:00:01.9]}
43... Rh2+ {[%clk 0:00:53.1]} 44. Kf1 {[%clk 0:00:02.4]} 44... g4 {[%clk
0:00:46.3]} 45. Nc5 {[%clk 0:00:02.6]} 45... Rc2 {[%clk 0:00:41]} 46. Nb7 {[%clk
0:00:02.8]} 46... Rc3 {[%clk 0:00:41.2]} 47. Ke2 {[%clk 0:00:01.6]} 47... Rc2+
{[%clk 0:00:41.6]} 48. Kf1 {[%clk 0:00:02.1]} 48... Rc3 {[%clk 0:00:41.8]} 49.
Kf2 {[%clk 0:00:02.7]} 49... Rc2+ {[%clk 0:00:42]} 50. Ke1 {[%clk 0:00:03.1]}
50... Rc3 {[%clk 0:00:42]} 51. Kd2 {[%clk 0:00:02.9]} 51... Ra3 {[%clk
0:00:42.1]} 52. Nxa5 {[%clk 0:00:03.6]} 52... Ra2+ {[%clk 0:00:42.7]} 53. Ke1
{[%clk 0:00:04.1]} 53... Rg2 {[%clk 0:00:43.6]} 54. Nc6+ {[%clk 0:00:04.6]}
54... Kd7 {[%clk 0:00:42.5]} 55. a5 {[%clk 0:00:05.1]} 55... Rxg3 {[%clk
0:00:42.2]} 56. Kf2 {[%clk 0:00:05.1]} 56... f4 {[%clk 0:00:41.9]} 57. exf4
{[%clk 0:00:05.2]} 57... Rf3+ {[%clk 0:00:42.3]} 58. Kg2 {[%clk 0:00:05.3]}
58... Rxf4 {[%clk 0:00:42.8]} 59. a6 {[%clk 0:00:05.7]} 59... Rf8 {[%clk
0:00:42.9]} 60. a7 {[%clk 0:00:05.9]} 60... Kc7 {[%clk 0:00:42.9]} 61. Nb8
{[%clk 0:00:05.2]} 61... Rxb8 {[%clk 0:00:42.9]} 62. axb8=Q+ {[%clk 0:00:05.9]}
62... Kxb8 {[%clk 0:00:43.2]} 63. Bd7 {[%clk 0:00:06.6]} 1-0

[Event "Early-Titled-Tuesday-Blitz-February-06-2024"]
[Site "Chess.com"]
[Date "2024.02.06"]
[Round "9"]
[White "vi_pranav"]
[Black "FGHSMN"]
[Result "1-0"]
[WhiteElo "3066"]
[BlackElo "2951"]
[TimeControl "180+1"]
[EndTime "9:45:09 PST"]
[Termination "vi_pranav won by resignation"]

1. e4 {[%clk 0:03:00.9]} 1... c6 {[%clk 0:02:59]} 2. Nf3 {[%clk 0:02:59]} 2...
d5 {[%clk 0:02:59.5]} 3. Nc3 {[%clk 0:02:59.4]} 3... Bg4 {[%clk 0:03:00.2]} 4.
h3 {[%clk 0:02:59.2]} 4... Bh5 {[%clk 0:03:00.8]} 5. exd5 {[%clk 0:02:48.2]}
5... cxd5 {[%clk 0:03:01.7]} 6. Bb5+ {[%clk 0:02:47.4]} 6... Nc6 {[%clk
0:03:02]} 7. g4 {[%clk 0:02:46.8]} 7... Bg6 {[%clk 0:03:02.7]} 8. Ne5 {[%clk
0:02:47.6]} 8... Rc8 {[%clk 0:03:03.2]} 9. d4 {[%clk 0:02:47.5]} 9... f6 {[%clk
0:02:58.8]} 10. Nxg6 {[%clk 0:02:44]} 10... hxg6 {[%clk 0:02:59.7]} 11. Be3
{[%clk 0:02:44.4]} 11... e6 {[%clk 0:02:59.1]} 12. a3 {[%clk 0:02:38.1]} 12...
Bd6 {[%clk 0:02:49.7]} 13. h4 {[%clk 0:02:33]} 13... Ne7 {[%clk 0:02:48.6]} 14.
Qf3 {[%clk 0:02:31.7]} 14... a6 {[%clk 0:02:38.6]} 15. Bd3 {[%clk 0:02:30.6]}
15... b5 {[%clk 0:02:36.4]} 16. h5 {[%clk 0:02:17.8]} 16... gxh5 {[%clk
0:02:18.2]} 17. gxh5 {[%clk 0:02:17.1]} 17... Kd7 {[%clk 0:02:12.9]} 18. a4
{[%clk 0:02:03.9]} 18... b4 {[%clk 0:02:07]} 19. Ne2 {[%clk 0:02:03.4]} 19... b3
{[%clk 0:01:46.3]} 20. c3 {[%clk 0:02:00.4]} 20... Na5 {[%clk 0:01:46.7]} 21.
Bxa6 {[%clk 0:01:56]} 21... Rb8 {[%clk 0:01:15.5]} 22. Nc1 {[%clk 0:01:51.7]}
22... Nc4 {[%clk 0:01:14.3]} 23. Bb5+ {[%clk 0:01:50.2]} 23... Rxb5 {[%clk
0:01:04.8]} 24. axb5 {[%clk 0:01:51.1]} 24... Qb6 {[%clk 0:01:05.2]} 25. Qd1
{[%clk 0:01:33.7]} 25... Qxb5 {[%clk 0:00:39.1]} 26. Qxb3 {[%clk 0:01:33]} 26...
Qc6 {[%clk 0:00:39.5]} 27. Ra7+ {[%clk 0:01:30.1]} 27... Bc7 {[%clk 0:00:37.9]}
28. Nd3 {[%clk 0:01:28.1]} 28... Ra8 {[%clk 0:00:25.1]} 29. Nc5+ {[%clk
0:01:22.3]} 29... Ke8 {[%clk 0:00:25]} 30. Rxa8+ {[%clk 0:01:09.6]} 30... Qxa8
{[%clk 0:00:25.9]} 31. Qa4+ {[%clk 0:01:08.8]} 31... Qxa4 {[%clk 0:00:25.2]} 32.
Nxa4 {[%clk 0:01:09.7]} 32... Nf5 {[%clk 0:00:26.1]} 33. Bc1 {[%clk 0:01:08.8]}
33... e5 {[%clk 0:00:23.1]} 34. dxe5 {[%clk 0:01:04.6]} 34... fxe5 {[%clk
0:00:24]} 35. h6 {[%clk 0:01:03.2]} 35... gxh6 {[%clk 0:00:23]} 36. Rh5 {[%clk
0:01:01.1]} 36... Ncd6 {[%clk 0:00:21.2]} 37. Bxh6 {[%clk 0:01:00.2]} 37... Kf7
{[%clk 0:00:22]} 38. Bc1 {[%clk 0:00:59.3]} 38... d4 {[%clk 0:00:20.6]} 39. Rh7+
{[%clk 0:00:51.8]} 39... Ng7 {[%clk 0:00:18.8]} 40. Bh6 {[%clk 0:00:51.8]} 40...
Nf5 {[%clk 0:00:17.2]} 41. Bxg7 {[%clk 0:00:52.2]} 41... Nxg7 {[%clk 0:00:18.1]}
42. Nc5 {[%clk 0:00:50.2]} 42... Ba5 {[%clk 0:00:16.3]} 43. b4 {[%clk 0:00:35]}
43... Bb6 {[%clk 0:00:14.1]} 44. cxd4 {[%clk 0:00:35.4]} 44... exd4 {[%clk
0:00:14]} 45. Ne6 {[%clk 0:00:17.1]} 45... Kxe6 {[%clk 0:00:12.8]} 46. Rxg7
{[%clk 0:00:17.7]} 46... Kd5 {[%clk 0:00:13.5]} 47. Kd2 {[%clk 0:00:14.9]} 47...
Kc4 {[%clk 0:00:12.3]} 48. Rg6 {[%clk 0:00:15.5]} 48... Bc7 {[%clk 0:00:12.1]}
49. Rc6+ {[%clk 0:00:15.5]} 1-0

[Event "Early-Titled-Tuesday-Blitz-February-06-2024"]
[Site "Chess.com"]
[Date "2024.02.06"]
[Round "9"]
[White "JonasEilenberg"]
[Black "GothamChess"]
[Result "0-1"]
[WhiteElo "2528"]
[BlackElo "2699"]
[TimeControl "180+1"]
[EndTime "9:45:09 PST"]
[Termination "GothamChess won by resignation"]

1. e4 {[%clk 0:03:00.9]} 1... d5 {[%clk 0:03:00.6]} 2. exd5 {[%clk 0:02:54.6]}
2... Qxd5 {[%clk 0:03:01.5]} 3. Nc3 {[%clk 0:02:55.4]} 3... Qa5 {[%clk
0:03:01.7]} 4. d4 {[%clk 0:02:56]} 4... Nf6 {[%clk 0:03:01.8]} 5. Nf3 {[%clk
0:02:56.6]} 5... Bf5 {[%clk 0:03:02.4]} 6. Bc4 {[%clk 0:02:48.6]} 6... e6 {[%clk
0:03:01.7]} 7. O-O {[%clk 0:02:49]} 7... Bb4 {[%clk 0:03:01.5]} 8. Ne2 {[%clk
0:02:45.8]} 8... O-O {[%clk 0:02:52.7]} 9. c3 {[%clk 0:02:45.9]} 9... Be7 {[%clk
0:02:51.9]} 10. Ng3 {[%clk 0:02:29.5]} 10... Bg6 {[%clk 0:02:51.3]} 11. Ne5
{[%clk 0:02:28.9]} 11... c5 {[%clk 0:02:47.5]} 12. Nxg6 {[%clk 0:02:28.3]} 12...
hxg6 {[%clk 0:02:47.1]} 13. dxc5 {[%clk 0:02:23.2]} 13... Qxc5 {[%clk
0:02:46.7]} 14. Qe2 {[%clk 0:02:22.4]} 14... Nc6 {[%clk 0:02:45.2]} 15. Be3
{[%clk 0:02:21.3]} 15... Qe5 {[%clk 0:02:43]} 16. Rfd1 {[%clk 0:02:17.9]} 16...
Bc5 {[%clk 0:02:35.2]} 17. Bxc5 {[%clk 0:01:59.3]} 17... Qxc5 {[%clk 0:02:35.2]}
18. Ne4 {[%clk 0:01:59.3]} 18... Nxe4 {[%clk 0:02:34.2]} 19. Qxe4 {[%clk
0:02:00.2]} 19... Rfd8 {[%clk 0:02:32.6]} 20. h3 {[%clk 0:01:56.6]} 20... b5
{[%clk 0:02:23.9]} 21. Be2 {[%clk 0:01:53.5]} 21... Rac8 {[%clk 0:02:13.2]} 22.
a4 {[%clk 0:01:31.3]} 22... b4 {[%clk 0:02:06]} 23. Rxd8+ {[%clk 0:01:18.6]}
23... Rxd8 {[%clk 0:02:05.8]} 24. Bf3 {[%clk 0:01:18.6]} 24... Ne5 {[%clk
0:01:49]} 25. cxb4 {[%clk 0:01:06]} 25... Nxf3+ {[%clk 0:01:49.2]} 26. Qxf3
{[%clk 0:00:53.1]} 26... Qxb4 {[%clk 0:01:48.4]} 27. Qc3 {[%clk 0:00:50]} 27...
Rb8 {[%clk 0:01:43]} 28. Qxb4 {[%clk 0:00:45.1]} 28... Rxb4 {[%clk 0:01:43.9]}
29. Rc1 {[%clk 0:00:34.5]} 29... Rxa4 {[%clk 0:01:42.8]} 30. Rc8+ {[%clk
0:00:34.9]} 30... Kh7 {[%clk 0:01:42.7]} 31. b3 {[%clk 0:00:32.5]} 31... Ra2
{[%clk 0:01:41]} 32. Ra8 {[%clk 0:00:27.2]} 32... f6 {[%clk 0:01:37.8]} 33. b4
{[%clk 0:00:27.3]} 33... g5 {[%clk 0:01:24.1]} 34. b5 {[%clk 0:00:26.7]} 34...
Ra5 {[%clk 0:01:24.2]} 35. g3 {[%clk 0:00:24.6]} 35... Kg6 {[%clk 0:01:24.2]}
36. Kg2 {[%clk 0:00:24.8]} 36... Kf5 {[%clk 0:01:23.6]} 37. Rg8 {[%clk
0:00:20.3]} 37... Rxb5 {[%clk 0:01:12.5]} 38. Rxg7 {[%clk 0:00:20.4]} 38... a5
{[%clk 0:01:12.4]} 39. Ra7 {[%clk 0:00:21]} 39... e5 {[%clk 0:01:11.6]} 40. Kf3
{[%clk 0:00:20.3]} 40... Rb3+ {[%clk 0:01:11.6]} 41. Kg2 {[%clk 0:00:20.1]}
41... Ra3 {[%clk 0:01:12.5]} 42. Ra6 {[%clk 0:00:18.1]} 42... e4 {[%clk
0:01:09.9]} 43. Rb6 {[%clk 0:00:17.8]} 43... Ra2 {[%clk 0:01:07.4]} 44. Kg1
{[%clk 0:00:13.1]} 44... a4 {[%clk 0:01:07.5]} 45. Ra6 {[%clk 0:00:12.6]} 45...
a3 {[%clk 0:01:07.2]} 46. h4 {[%clk 0:00:10.6]} 46... gxh4 {[%clk 0:00:28.3]}
47. gxh4 {[%clk 0:00:11.5]} 47... Kg4 {[%clk 0:00:18]} 48. Rxf6 {[%clk
0:00:10.8]} 48... Kh3 {[%clk 0:00:18.4]} 49. Kf1 {[%clk 0:00:08.6]} 49... Ra1+
{[%clk 0:00:16.5]} 50. Ke2 {[%clk 0:00:09]} 50... a2 {[%clk 0:00:17]} 51. Ra6
{[%clk 0:00:09.5]} 51... e3 {[%clk 0:00:17.7]} 52. Ra3 {[%clk 0:00:09.9]} 52...
Kxh4 {[%clk 0:00:16.6]} 53. Rxe3 {[%clk 0:00:02.2]} 53... Rb1 {[%clk 0:00:14.9]}
54. Re4+ {[%clk 0:00:02.7]} 54... Kg5 {[%clk 0:00:14.6]} 0-1

[Event "Early-Titled-Tuesday-Blitz-February-06-2024"]
[Site "Chess.com"]
[Date "2024.02.06"]
[Round "9"]
[White "ViIIagra"]
[Black "starworld123"]
[Result "1-0"]
[WhiteElo "2965"]
[BlackElo "2831"]
[TimeControl "180+1"]
[EndTime "9:45:11 PST"]
[Termination "ViIIagra won on time"]

1. Nf3 {[%clk 0:03:00.9]} 1... d5 {[%clk 0:03:00]} 2. d3 {[%clk 0:03:00.9]} 2...
Nf6 {[%clk 0:02:56.9]} 3. c3 {[%clk 0:03:00.5]} 3... g6 {[%clk 0:02:53.3]} 4.
Qc2 {[%clk 0:03:00.9]} 4... c5 {[%clk 0:02:39.1]} 5. e4 {[%clk 0:03:01.4]} 5...
Nc6 {[%clk 0:02:39.7]} 6. Be2 {[%clk 0:02:58.2]} 6... e5 {[%clk 0:02:32.8]} 7.
Bg5 {[%clk 0:02:56.4]} 7... Bg7 {[%clk 0:02:28]} 8. Nbd2 {[%clk 0:02:36.6]} 8...
O-O {[%clk 0:02:19.8]} 9. O-O {[%clk 0:02:36.5]} 9... Be6 {[%clk 0:02:14.1]} 10.
exd5 {[%clk 0:02:33.7]} 10... Bxd5 {[%clk 0:02:15]} 11. Ne4 {[%clk 0:02:34]}
11... b6 {[%clk 0:02:08.3]} 12. Rfe1 {[%clk 0:02:33.9]} 12... Re8 {[%clk
0:01:59.7]} 13. Rad1 {[%clk 0:02:22]} 13... Re6 {[%clk 0:01:39.1]} 14. a3 {[%clk
0:02:13.3]} 14... Qc7 {[%clk 0:01:36.7]} 15. c4 {[%clk 0:02:01.5]} 15... Bxe4
{[%clk 0:01:36.1]} 16. dxe4 {[%clk 0:02:02.4]} 16... Nd4 {[%clk 0:01:31.5]} 17.
Nxd4 {[%clk 0:02:01.4]} 17... exd4 {[%clk 0:01:32.4]} 18. Bd3 {[%clk 0:02:00.7]}
18... Rae8 {[%clk 0:01:32.2]} 19. f3 {[%clk 0:01:54]} 19... Nd7 {[%clk
0:01:23.9]} 20. Bh4 {[%clk 0:01:43.3]} 20... Be5 {[%clk 0:01:06.6]} 21. g3
{[%clk 0:01:42.8]} 21... Bf6 {[%clk 0:00:47.2]} 22. Bxf6 {[%clk 0:01:42.6]}
22... Nxf6 {[%clk 0:00:48.1]} 23. Qf2 {[%clk 0:01:42.1]} 23... Qe7 {[%clk
0:00:45.9]} 24. Re2 {[%clk 0:01:41.2]} 24... Nd7 {[%clk 0:00:44.2]} 25. f4
{[%clk 0:01:40.5]} 25... Nf6 {[%clk 0:00:42.7]} 26. Rde1 {[%clk 0:01:22.4]}
26... Ng4 {[%clk 0:00:41.7]} 27. Qf3 {[%clk 0:01:22.1]} 27... Ne3 {[%clk
0:00:40.6]} 28. h4 {[%clk 0:01:22.4]} 28... Qb7 {[%clk 0:00:36.7]} 29. h5 {[%clk
0:01:16.5]} 29... f5 {[%clk 0:00:33.9]} 30. Rxe3 {[%clk 0:01:07]} 30... dxe3
{[%clk 0:00:34.2]} 31. Qxe3 {[%clk 0:01:07.9]} 31... fxe4 {[%clk 0:00:32.6]} 32.
Be2 {[%clk 0:01:08.6]} 32... Rd6 {[%clk 0:00:29.4]} 33. hxg6 {[%clk 0:01:03.7]}
33... hxg6 {[%clk 0:00:30.3]} 34. Kg2 {[%clk 0:01:02.1]} 34... Qg7 {[%clk
0:00:28.4]} 35. Rb1 {[%clk 0:00:46.1]} 35... Qd4 {[%clk 0:00:27.8]} 36. Kf2
{[%clk 0:00:46.9]} 36... Kg7 {[%clk 0:00:24.6]} 37. Rd1 {[%clk 0:00:46.9]} 37...
Qxe3+ {[%clk 0:00:23.9]} 38. Kxe3 {[%clk 0:00:47.8]} 38... Rxd1 {[%clk
0:00:23.6]} 39. Bxd1 {[%clk 0:00:48.7]} 39... Rd8 {[%clk 0:00:23.2]} 40. Bc2
{[%clk 0:00:47.6]} 40... Rd4 {[%clk 0:00:23.9]} 41. b3 {[%clk 0:00:47.4]} 41...
a5 {[%clk 0:00:20.9]} 42. a4 {[%clk 0:00:46.6]} 42... Kf6 {[%clk 0:00:20.2]} 43.
g4 {[%clk 0:00:39.6]} 43... g5 {[%clk 0:00:16]} 44. Bxe4 {[%clk 0:00:40.1]}
44... Rd1 {[%clk 0:00:13.9]} 45. fxg5+ {[%clk 0:00:34.1]} 45... Kxg5 {[%clk
0:00:14.8]} 46. Bf5 {[%clk 0:00:34.8]} 46... Rg1 {[%clk 0:00:15.2]} 47. Ke4
{[%clk 0:00:32.2]} 47... Rg3 {[%clk 0:00:14.9]} 48. Kd5 {[%clk 0:00:32.4]} 48...
Rxb3 {[%clk 0:00:15.6]} 49. Bd7 {[%clk 0:00:33]} 49... Rb4 {[%clk 0:00:15.3]}
50. Bb5 {[%clk 0:00:31.9]} 50... Kxg4 {[%clk 0:00:15.2]} 51. Kc6 {[%clk
0:00:32.6]} 51... Kf4 {[%clk 0:00:10.2]} 52. Kxb6 {[%clk 0:00:33]} 52... Ke5
{[%clk 0:00:11]} 53. Kxa5 {[%clk 0:00:31.2]} 53... Kd6 {[%clk 0:00:09.1]} 54.
Kb6 {[%clk 0:00:31.6]} 54... Rb1 {[%clk 0:00:08.4]} 55. a5 {[%clk 0:00:32.1]}
55... Rh1 {[%clk 0:00:09.3]} 56. a6 {[%clk 0:00:32.4]} 56... Rh8 {[%clk
0:00:08.7]} 57. a7 {[%clk 0:00:32.8]} 57... Rc8 {[%clk 0:00:08.1]} 58. Kb7
{[%clk 0:00:31.5]} 1-0